[Event "Titled Tuesday Blitz August 16 Early 2022"]
[White "Zhurbinsky, David"]
[Black "Zherebtsova, Alexandra"]
[WhiteFideId "2072904"]
[BlackFideId "24129518"]
[WhiteElo "1996"]
[BlackElo "2025"]
[Result "0-1"]
[Round "06"]
[TimeControl "180+2"]
[Date "2022.08.18"]
[WhiteClock "0:00:00"]
[BlackClock "0:00:00"]

1. e4 {[%clk 0:00:00]}  e5 {[%clk 0:00:00]} 2. Nf3 {[%clk 0:00:00]}  Nc6 {[%clk 0:00:00]} 3. Bb5 {[%clk 0:00:00]}  a6 {[%clk 0:00:00]} 4. Ba4 {[%clk 0:00:00]}  Nf6 {[%clk 0:00:00]} 5. O-O {[%clk 0:00:00]}  Be7 {[%clk 0:00:00]} 6. Re1 {[%clk 0:00:00]}  b5 {[%clk 0:00:00]} 7. Bb3 {[%clk 0:00:00]}  d6 {[%clk 0:00:00]} 8. c3 {[%clk 0:00:00]}  O-O {[%clk 0:00:00]} 9. h3 {[%clk 0:00:00]}  Bb7 {[%clk 0:00:00]} 10. d4 {[%clk 0:00:00]}  Re8 {[%clk 0:00:00]} 11. Ng5 {[%clk 0:00:00]}  Rf8 {[%clk 0:00:00]} 12. Nd2 {[%clk 0:00:00]}  exd4 {[%clk 0:00:00]} 13. Nf1 {[%clk 0:00:00]}  dxc3 {[%clk 0:00:00]} 14. Ng3 {[%clk 0:00:00]}  h6 {[%clk 0:00:00]} 15. Nf3 {[%clk 0:00:00]}  Re8 {[%clk 0:00:00]} 16. Nf5 {[%clk 0:00:00]}  Bf8 {[%clk 0:00:00]} 17. bxc3 {[%clk 0:00:00]}  Na5 {[%clk 0:00:00]} 18. Bc2 {[%clk 0:00:00]}  Bxe4 {[%clk 0:00:00]} 19. Bxe4 {[%clk 0:00:00]}  Nxe4 {[%clk 0:00:00]} 20. Qd4 {[%clk 0:00:00]}  c5 {[%clk 0:00:00]} 21. Qd3 {[%clk 0:00:00]}  d5 {[%clk 0:00:00]} 22. Bf4 {[%clk 0:00:00]}  Nc4 {[%clk 0:00:00]} 23. g4 {[%clk 0:00:00]}  Ra7 {[%clk 0:00:00]} 24. h4 {[%clk 0:00:00]}  Qd7 {[%clk 0:00:00]} 25. Kg2 {[%clk 0:00:00]}  g6 {[%clk 0:00:00]} 26. Ng3 {[%clk 0:00:00]}  Qxg4 {[%clk 0:00:00]} 27. Qxd5 {[%clk 0:00:00]}  Qxf4 {[%clk 0:00:00]} 28. Nxe4 {[%clk 0:00:00]}  Raa8 {[%clk 0:00:00]} 29. Rad1 {[%clk 0:00:00]}  Rad8 {[%clk 0:00:00]} 30. Qxd8 {[%clk 0:00:00]}  Rxd8 {[%clk 0:00:00]} 31. Rxd8 {[%clk 0:00:00]}  Qg4+ {[%clk 0:00:00]} 32. Ng3 {[%clk 0:00:00]}  Kg7 {[%clk 0:00:00]} 33. Ree8 {[%clk 0:00:00]}  Bd6 {[%clk 0:00:00]} 34. Rg8+ {[%clk 0:00:00]}  Kf6 {[%clk 0:00:00]} 35. h5 {[%clk 0:00:00]}  Bxg3 {[%clk 0:00:00]} 36. fxg3 {[%clk 0:00:00]}  Qe4 {[%clk 0:00:00]} 37. Rge8 {[%clk 0:00:00]}  Qc6 {[%clk 0:00:00]} 38. hxg6 {[%clk 0:00:00]}  Kxg6 {[%clk 0:00:00]} 39. Kf2 {[%clk 0:00:00]}  b4 {[%clk 0:00:00]} 40. cxb4 {[%clk 0:00:00]}  cxb4 {[%clk 0:00:00]} 41. g4 {[%clk 0:00:00]}  a5 {[%clk 0:00:00]} 42. Kg3 {[%clk 0:00:00]}  a4 {[%clk 0:00:00]} 43. Nh4+ {[%clk 0:00:00]}  Kf6 {[%clk 0:00:00]} 44. Nf5 {[%clk 0:00:00]}  b3 {[%clk 0:00:00]} 45. axb3 {[%clk 0:00:00]}  axb3 {[%clk 0:00:00]} 46. Rh8 {[%clk 0:00:00]}  Ke5 {[%clk 0:00:00]} 47. Rhe8+ {[%clk 0:00:00]}  Kf6 {[%clk 0:00:00]} 48. Rh8 {[%clk 0:00:00]}  Ke5 {[%clk 0:00:00]} 49. Rxh6 {[%clk 0:00:00]}  Qc7 {[%clk 0:00:00]} 50. Rd1 {[%clk 0:00:00]}  b2 {[%clk 0:00:00]} 51. Rh2 {[%clk 0:00:00]}  Qb8 {[%clk 0:00:00]} 52. Re2+ {[%clk 0:00:00]}  Kf6+ {[%clk 0:00:00]} 53. Kh4 {[%clk 0:00:00]}  b1=Q {[%clk 0:00:00]} 54. g5+ {[%clk 0:00:00]}  Kg6 {[%clk 0:00:00]} 55. Ne7+ {[%clk 0:00:00]}  Kg7 {[%clk 0:00:00]} 56. Rxb1 {[%clk 0:00:00]}  Qxb1 {[%clk 0:00:00]} 57. Rf2 {[%clk 0:00:00]}  Qd3 {[%clk 0:00:00]} 58. Nf5+ {[%clk 0:00:00]}  Kg6 {[%clk 0:00:00]} 59. Ne7+ {[%clk 0:00:00]}  Kg7 {[%clk 0:00:00]} 60. Nf5+ {[%clk 0:00:00]}  Kf8 {[%clk 0:00:00]} 61. Kg4 {[%clk 0:00:00]}  Qe4+ {[%clk 0:00:00]} 62. Rf4 {[%clk 0:00:00]}  Ne5+ {[%clk 0:00:00]} 63. Kg3 {[%clk 0:00:00]}  Qd3+ {[%clk 0:00:00]} 64. Kh4 {[%clk 0:00:00]}  Ng6+ {[%clk 0:00:00]} 65. Kg4 {[%clk 0:00:00]}  Nxf4 {[%clk 0:00:00]} 66. Nh6 {[%clk 0:00:00]}  Kg7 {[%clk 0:00:00]} 67. Nf5+ {[%clk 0:00:00]}  Kf8 {[%clk 0:00:00]} 68. Nh6 {[%clk 0:00:00]}  Qd5 {[%clk 0:00:00]} 69. Kxf4 {[%clk 0:00:00]}  f6 {[%clk 0:00:00]} 70. gxf6 {[%clk 0:00:00]}  Qd2+ {[%clk 0:00:00]} 71. Kf5 {[%clk 0:00:00]}  Qxh6 {[%clk 0:00:00]} 72. Ke6 {[%clk 0:00:00]}  Ke8 {[%clk 0:00:00]} 73. Kf5 {[%clk 0:00:00]}  Kf8 {[%clk 0:00:00]} 74. Ke6 {[%clk 0:00:00]}  Qh7 {[%clk 0:00:00]} 75. Kd6 {[%clk 0:00:00]}  Qf7 {[%clk 0:00:00]} 76. Ke5 {[%clk 0:00:00]}  Qg6 {[%clk 0:00:00]} 77. Ke6 {[%clk 0:00:00]}  Qh6 {[%clk 0:00:00]} 78. Ke5 {[%clk 0:00:00]}  Kf7 {[%clk 0:00:00]} 79. Kd6 {[%clk 0:00:00]}  Qxf6+ {[%clk 0:00:00]} 80. Kd5 {[%clk 0:00:00]}  Qe6+ {[%clk 0:00:00]} 81. Kd4 {[%clk 0:00:00]}  Kf6 {[%clk 0:00:00]} 82. Kc5 {[%clk 0:00:00]}  Qd7 {[%clk 0:00:00]} 83. Kc4 {[%clk 0:00:00]}  Qf5 {[%clk 0:00:00]} 84. Kd4 {[%clk 0:00:00]}  Ke6 {[%clk 0:00:00]} 85. Kc4 {[%clk 0:00:00]}  Qd5+ {[%clk 0:00:00]} 86. Kb4 {[%clk 0:00:00]}  Kd6 {[%clk 0:00:00]} 87. Kc3 {[%clk 0:00:00]}  Qe4 {[%clk 0:00:00]} 88. Kb3 {[%clk 0:00:00]}  Kc5 {[%clk 0:00:00]} 89. Kc3 {[%clk 0:00:00]}  Qe3+ {[%clk 0:00:00]} 90. Kb2 {[%clk 0:00:00]}  Kb4 {[%clk 0:00:00]} 91. Ka2 {[%clk 0:00:00]}  Qb3+ {[%clk 0:00:00]} 92. Ka1 {[%clk 0:00:00]}  Qf3 {[%clk 0:00:00]} 93. Kb1 {[%clk 0:00:00]}  Qg2 {[%clk 0:00:00]} 94. Kc1 {[%clk 0:00:00]}  Kc3 {[%clk 0:00:00]} 95. Kd1 {[%clk 0:00:00]}  Qd2# {[%clk 0:00:00]} 0-1


[Site "https://www.chess.com"]

[Event "Titled Tuesday Blitz August 16 Early 2022"]
[White "Ardila, Oscar Humberto"]
[Black "Proudian, Armen"]
[WhiteFideId "4404742"]
[BlackFideId "2130734"]
[WhiteElo "1939"]
[BlackElo "2380"]
[Result "0-1"]
[Round "07"]
[TimeControl "180+2"]
[Date "2022.08.18"]
[WhiteClock "0:00:00"]
[BlackClock "0:00:00"]

1. d4 {[%clk 0:00:00]}  Nf6 {[%clk 0:00:00]} 2. c4 {[%clk 0:00:00]}  e6 {[%clk 0:00:00]} 3. Nc3 {[%clk 0:00:00]}  Bb4 {[%clk 0:00:00]} 4. Bd2 {[%clk 0:00:00]}  O-O {[%clk 0:00:00]} 5. Nf3 {[%clk 0:00:00]}  d5 {[%clk 0:00:00]} 6. e3 {[%clk 0:00:00]}  Nbd7 {[%clk 0:00:00]} 7. Qc2 {[%clk 0:00:00]}  Re8 {[%clk 0:00:00]} 8. b3 {[%clk 0:00:00]}  dxc4 {[%clk 0:00:00]} 9. bxc4 {[%clk 0:00:00]}  c5 {[%clk 0:00:00]} 10. Bd3 {[%clk 0:00:00]}  b6 {[%clk 0:00:00]} 11. O-O {[%clk 0:00:00]}  cxd4 {[%clk 0:00:00]} 12. exd4 {[%clk 0:00:00]}  Bb7 {[%clk 0:00:00]} 13. Ne5 {[%clk 0:00:00]}  Rc8 {[%clk 0:00:00]} 14. Bg5 {[%clk 0:00:00]}  h6 {[%clk 0:00:00]} 15. Bh4 {[%clk 0:00:00]}  Qc7 {[%clk 0:00:00]} 16. Bg3 {[%clk 0:00:00]}  Nxe5 {[%clk 0:00:00]} 17. Bxe5 {[%clk 0:00:00]}  Qc6 {[%clk 0:00:00]} 18. f3 {[%clk 0:00:00]}  Ba6 {[%clk 0:00:00]} 19. Bxf6 {[%clk 0:00:00]}  gxf6 {[%clk 0:00:00]} 20. Ne4 {[%clk 0:00:00]}  Be7 {[%clk 0:00:00]} 21. Rac1 {[%clk 0:00:00]}  f5 {[%clk 0:00:00]} 22. Ng3 {[%clk 0:00:00]}  Ba3 {[%clk 0:00:00]} 23. Qd2 {[%clk 0:00:00]}  Bxc1 {[%clk 0:00:00]} 24. Rxc1 {[%clk 0:00:00]}  Kh7 {[%clk 0:00:00]} 25. Nh5 {[%clk 0:00:00]}  Red8 {[%clk 0:00:00]} 26. Qf4 {[%clk 0:00:00]}  Qd6 {[%clk 0:00:00]} 27. Bxf5+ {[%clk 0:00:00]}  exf5 {[%clk 0:00:00]} 28. Qxf5+ {[%clk 0:00:00]}  Qg6 {[%clk 0:00:00]} 29. Nf6+ {[%clk 0:00:00]}  Kh8 {[%clk 0:00:00]} 30. Qf4 {[%clk 0:00:00]}  Rxc4 {[%clk 0:00:00]} 31. Rxc4 {[%clk 0:00:00]}  Bxc4 {[%clk 0:00:00]} 32. Qe5 {[%clk 0:00:00]}  Qb1+ {[%clk 0:00:00]} 33. Kf2 {[%clk 0:00:00]}  Qb2+ {[%clk 0:00:00]} 34. Kg3 {[%clk 0:00:00]}  Qxd4 {[%clk 0:00:00]} 35. Qf5 {[%clk 0:00:00]}  Bd3 {[%clk 0:00:00]} 36. Ne4 {[%clk 0:00:00]}  Bxe4 {[%clk 0:00:00]} 37. fxe4 {[%clk 0:00:00]}  Qe3+ {[%clk 0:00:00]} 38. Kh4 {[%clk 0:00:00]}  Qg5+ {[%clk 0:00:00]} 0-1


[Site "https://www.chess.com"]

[Event "Titled Tuesday Blitz August 16 Early 2022"]
[White "Arslanov, Shamil"]
[Black "Zemlyanskii, Ivan"]
[WhiteFideId "4192826"]
[BlackFideId "24249971"]
[WhiteElo "2338"]
[BlackElo "1879"]
[Result "0-1"]
[Round "07"]
[TimeControl "180+1"]
[Date "2022.08.16"]
[WhiteClock "0:00:05"]
[BlackClock "0:00:37"]

1. e4 {[%clk 0:02:55]}  c5 {[%clk 0:03:00]} 2. Nc3 {[%clk 0:02:53]}  e6 {[%clk 0:02:56]} 3. f4 {[%clk 0:02:50]}  d5 {[%clk 0:02:55]} 4. Nf3 {[%clk 0:02:50]}  dxe4 {[%clk 0:02:53]} 5. Nxe4 {[%clk 0:02:51]}  Nc6 {[%clk 0:02:53]} 6. Bc4 {[%clk 0:02:50]}  Be7 {[%clk 0:02:52]} 7. Qe2 {[%clk 0:02:50]}  Nf6 {[%clk 0:02:43]} 8. d3 {[%clk 0:02:49]}  O-O {[%clk 0:02:43]} 9. O-O {[%clk 0:02:49]}  b6 {[%clk 0:02:40]} 10. Kh1 {[%clk 0:02:46]}  Bb7 {[%clk 0:02:40]} 11. Bd2 {[%clk 0:02:43]}  Rc8 {[%clk 0:02:40]} 12. Rae1 {[%clk 0:02:43]}  Nd4 {[%clk 0:02:38]} 13. Nxd4 {[%clk 0:02:40]}  cxd4 {[%clk 0:02:36]} 14. Bb3 {[%clk 0:02:39]}  Bd5 {[%clk 0:02:27]} 15. c4 {[%clk 0:02:22]}  dxc3 {[%clk 0:02:22]} 16. bxc3 {[%clk 0:02:23]}  Qc7 {[%clk 0:02:02]} 17. f5 {[%clk 0:02:12]}  Bxe4 {[%clk 0:01:30]} 18. dxe4 {[%clk 0:02:11]}  e5 {[%clk 0:01:30]} 19. g4 {[%clk 0:02:04]}  Rfd8 {[%clk 0:01:18]} 20. g5 {[%clk 0:01:32]}  Nxe4 {[%clk 0:01:15]} 21. Qxe4 {[%clk 0:01:33]}  Rxd2 {[%clk 0:01:15]} 22. f6 {[%clk 0:01:34]}  Qxc3 {[%clk 0:00:40]} 23. fxe7 {[%clk 0:01:24]}  Qh3 {[%clk 0:00:40]} 24. Bxf7+ {[%clk 0:00:13]}  Kh8 {[%clk 0:00:39]} 25. Rf2 {[%clk 0:00:07]}  Rxf2 {[%clk 0:00:37]} 26. Kg1 {[%clk 0:00:05]}  Qxh2# {[%clk 0:00:37]} 0-1


[Site "https://www.chess.com"]

[Event "Titled Tuesday Blitz August 16 Early 2022"]
[White "Avalos Parra, Joao"]
[Black "McBryde, Lamel"]
[WhiteFideId "3402541"]
[BlackFideId "2058596"]
[WhiteElo "2173"]
[BlackElo "2136"]
[Result "0-1"]
[Round "07"]
[TimeControl "180+2"]
[Date "2022.08.18"]
[WhiteClock "0:00:00"]
[BlackClock "0:00:00"]

1. d4 {[%clk 0:00:00]}  Nf6 {[%clk 0:00:00]} 2. Nc3 {[%clk 0:00:00]}  d6 {[%clk 0:00:00]} 3. e4 {[%clk 0:00:00]}  g6 {[%clk 0:00:00]} 4. f4 {[%clk 0:00:00]}  Bg7 {[%clk 0:00:00]} 5. Nf3 {[%clk 0:00:00]}  O-O {[%clk 0:00:00]} 6. e5 {[%clk 0:00:00]}  dxe5 {[%clk 0:00:00]} 7. fxe5 {[%clk 0:00:00]}  Ng4 {[%clk 0:00:00]} 8. h3 {[%clk 0:00:00]}  Nh6 {[%clk 0:00:00]} 9. h4 {[%clk 0:00:00]}  Nf5 {[%clk 0:00:00]} 10. h5 {[%clk 0:00:00]}  Ng3 {[%clk 0:00:00]} 11. Rh2 {[%clk 0:00:00]}  gxh5 {[%clk 0:00:00]} 12. Bf4 {[%clk 0:00:00]}  Nxf1 {[%clk 0:00:00]} 13. Kxf1 {[%clk 0:00:00]}  Bg4 {[%clk 0:00:00]} 14. Qd2 {[%clk 0:00:00]}  f6 {[%clk 0:00:00]} 15. e6 {[%clk 0:00:00]}  Bxe6 {[%clk 0:00:00]} 16. Rxh5 {[%clk 0:00:00]}  Bf7 {[%clk 0:00:00]} 17. Rh2 {[%clk 0:00:00]}  Bg6 {[%clk 0:00:00]} 18. Nh4 {[%clk 0:00:00]}  e5 {[%clk 0:00:00]} 19. Nxg6 {[%clk 0:00:00]}  hxg6 {[%clk 0:00:00]} 20. dxe5 {[%clk 0:00:00]}  Qxd2 {[%clk 0:00:00]} 21. Bxd2 {[%clk 0:00:00]}  fxe5+ {[%clk 0:00:00]} 22. Ke2 {[%clk 0:00:00]}  Nc6 {[%clk 0:00:00]} 23. Be3 {[%clk 0:00:00]}  Nd4+ {[%clk 0:00:00]} 24. Bxd4 {[%clk 0:00:00]}  exd4 {[%clk 0:00:00]} 25. Ne4 {[%clk 0:00:00]}  Rae8 {[%clk 0:00:00]} 26. Kd3 {[%clk 0:00:00]}  b6 {[%clk 0:00:00]} 27. a4 {[%clk 0:00:00]}  c5 {[%clk 0:00:00]} 28. b3 {[%clk 0:00:00]}  Rf4 {[%clk 0:00:00]} 29. Re1 {[%clk 0:00:00]}  Re5 {[%clk 0:00:00]} 30. Rh3 {[%clk 0:00:00]}  a6 {[%clk 0:00:00]} 31. Rg3 {[%clk 0:00:00]}  b5 {[%clk 0:00:00]} 32. axb5 {[%clk 0:00:00]}  axb5 {[%clk 0:00:00]} 33. c4 {[%clk 0:00:00]}  dxc3 {[%clk 0:00:00]} 34. Rxg6 {[%clk 0:00:00]}  c4+ {[%clk 0:00:00]} 35. bxc4 {[%clk 0:00:00]}  bxc4+ {[%clk 0:00:00]} 0-1


[Site "https://www.chess.com"]

[Event "Titled Tuesday Blitz August 16 Early 2022"]
[White "Babazada, Khazar"]
[Black "Le, Tuan Minh"]
[WhiteFideId "13413554"]
[BlackFideId "12401153"]
[WhiteElo "2409"]
[BlackElo "2530"]
[Result "0-1"]
[Round "07"]
[TimeControl "180+1"]
[Date "2022.08.16"]
[WhiteClock "0:00:18"]
[BlackClock "0:00:09"]

1. e4 {[%clk 0:03:00]}  c5 {[%clk 0:02:58]} 2. Nf3 {[%clk 0:02:57]}  Nf6 {[%clk 0:02:58]} 3. e5 {[%clk 0:02:52]}  Nd5 {[%clk 0:02:58]} 4. Nc3 {[%clk 0:02:53]}  e6 {[%clk 0:02:59]} 5. Ne4 {[%clk 0:02:53]}  f5 {[%clk 0:02:59]} 6. Nc3 {[%clk 0:02:37]}  Ne7 {[%clk 0:02:58]} 7. h4 {[%clk 0:02:36]}  a6 {[%clk 0:02:53]} 8. g3 {[%clk 0:02:29]}  Nbc6 {[%clk 0:02:50]} 9. Qe2 {[%clk 0:02:26]}  Nd4 {[%clk 0:02:35]} 10. Nxd4 {[%clk 0:02:25]}  cxd4 {[%clk 0:02:36]} 11. Nd1 {[%clk 0:02:21]}  Qc7 {[%clk 0:02:32]} 12. Bg2 {[%clk 0:02:21]}  Nc6 {[%clk 0:02:30]} 13. f4 {[%clk 0:02:17]}  b5 {[%clk 0:02:05]} 14. a3 {[%clk 0:02:15]}  Bb7 {[%clk 0:02:03]} 15. O-O {[%clk 0:02:16]}  Bc5 {[%clk 0:02:03]} 16. d3 {[%clk 0:02:06]}  O-O {[%clk 0:02:03]} 17. Re1 {[%clk 0:01:44]}  Rac8 {[%clk 0:02:02]} 18. Bd2 {[%clk 0:01:42]}  Ne7 {[%clk 0:02:00]} 19. Bxb7 {[%clk 0:01:41]}  Qxb7 {[%clk 0:02:01]} 20. Qg2 {[%clk 0:01:41]}  Nd5 {[%clk 0:01:58]} 21. Rc1 {[%clk 0:01:38]}  Rc7 {[%clk 0:01:57]} 22. Kh2 {[%clk 0:01:37]}  Rfc8 {[%clk 0:01:57]} 23. g4 {[%clk 0:01:33]}  fxg4 {[%clk 0:01:31]} 24. Qxg4 {[%clk 0:01:33]}  Bf8 {[%clk 0:01:16]} 25. c3 {[%clk 0:01:29]}  a5 {[%clk 0:01:09]} 26. Nf2 {[%clk 0:01:28]}  dxc3 {[%clk 0:01:09]} 27. bxc3 {[%clk 0:01:28]}  Nxc3 {[%clk 0:01:06]} 28. Rg1 {[%clk 0:00:52]}  Qd5 {[%clk 0:00:38]} 29. Rg2 {[%clk 0:00:33]}  b4 {[%clk 0:00:29]} 30. axb4 {[%clk 0:00:33]}  axb4 {[%clk 0:00:30]} 31. Bxc3 {[%clk 0:00:33]}  bxc3 {[%clk 0:00:30]} 32. Ne4 {[%clk 0:00:33]}  Qxd3 {[%clk 0:00:27]} 33. f5 {[%clk 0:00:29]}  Rc4 {[%clk 0:00:18]} 34. Re1 {[%clk 0:00:29]}  Rxe4 {[%clk 0:00:15]} 35. Rxe4 {[%clk 0:00:22]}  c2 {[%clk 0:00:15]} 36. fxe6 {[%clk 0:00:18]}  c1=Q {[%clk 0:00:15]} 37. exd7 {[%clk 0:00:18]}  Rc2 {[%clk 0:00:09]} 0-1


[Site "https://www.chess.com"]

[Event "Titled Tuesday Blitz August 16 Early 2022"]
[White "Barp, Alberto"]
[Black "D`Arruda, Ricardo D."]
[WhiteFideId "872555"]
[BlackFideId "100692"]
[WhiteElo "2229"]
[BlackElo "2271"]
[Result "1/2-1/2"]
[Round "07"]
[TimeControl "180+2"]
[Date "2022.08.18"]
[WhiteClock "0:00:00"]
[BlackClock "0:00:00"]

1. d4 {[%clk 0:00:00]}  Nf6 {[%clk 0:00:00]} 2. c4 {[%clk 0:00:00]}  e5 {[%clk 0:00:00]} 3. dxe5 {[%clk 0:00:00]}  Ne4 {[%clk 0:00:00]} 4. Nf3 {[%clk 0:00:00]}  Nc6 {[%clk 0:00:00]} 5. a3 {[%clk 0:00:00]}  d6 {[%clk 0:00:00]} 6. Qc2 {[%clk 0:00:00]}  d5 {[%clk 0:00:00]} 7. cxd5 {[%clk 0:00:00]}  Qxd5 {[%clk 0:00:00]} 8. Nc3 {[%clk 0:00:00]}  Nxc3 {[%clk 0:00:00]} 9. Qxc3 {[%clk 0:00:00]}  Bg4 {[%clk 0:00:00]} 10. Bf4 {[%clk 0:00:00]}  O-O-O {[%clk 0:00:00]} 11. g3 {[%clk 0:00:00]}  Bc5 {[%clk 0:00:00]} 12. Rc1 {[%clk 0:00:00]}  Bb6 {[%clk 0:00:00]} 13. Bg2 {[%clk 0:00:00]}  Nd4 {[%clk 0:00:00]} 14. Be3 {[%clk 0:00:00]}  Bxf3 {[%clk 0:00:00]} 15. Bxf3 {[%clk 0:00:00]}  Nxf3+ {[%clk 0:00:00]} 16. exf3 {[%clk 0:00:00]}  Qxf3 {[%clk 0:00:00]} 17. O-O {[%clk 0:00:00]}  Rd7 {[%clk 0:00:00]} 18. Rfe1 {[%clk 0:00:00]}  Rhd8 {[%clk 0:00:00]} 19. Bxb6 {[%clk 0:00:00]}  Qxc3 {[%clk 0:00:00]} 20. Rxc3 {[%clk 0:00:00]}  axb6 {[%clk 0:00:00]} 21. e6 {[%clk 0:00:00]}  Re7 {[%clk 0:00:00]} 22. Rce3 {[%clk 0:00:00]}  fxe6 {[%clk 0:00:00]} 23. Rxe6 {[%clk 0:00:00]}  Rxe6 {[%clk 0:00:00]} 24. Rxe6 {[%clk 0:00:00]}  Rd2 {[%clk 0:00:00]} 25. Re7 {[%clk 0:00:00]}  Rxb2 {[%clk 0:00:00]} 26. Rxg7 {[%clk 0:00:00]}  c5 {[%clk 0:00:00]} 27. a4 {[%clk 0:00:00]}  b5 {[%clk 0:00:00]} 28. axb5 {[%clk 0:00:00]}  Rxb5 {[%clk 0:00:00]} 29. f4 {[%clk 0:00:00]}  c4 {[%clk 0:00:00]} 30. Kf2 {[%clk 0:00:00]}  Rb2+ {[%clk 0:00:00]} 31. Ke3 {[%clk 0:00:00]}  Rxh2 {[%clk 0:00:00]} 32. Kd4 {[%clk 0:00:00]}  h5 {[%clk 0:00:00]} 33. Kxc4 {[%clk 0:00:00]}  h4 {[%clk 0:00:00]} 34. g4 {[%clk 0:00:00]}  Rg2 {[%clk 0:00:00]} 35. g5 {[%clk 0:00:00]}  Rg4 {[%clk 0:00:00]} 36. Kd5 {[%clk 0:00:00]}  Rxf4 {[%clk 0:00:00]} 37. Ke5 {[%clk 0:00:00]}  Rg4 {[%clk 0:00:00]} 38. g6 {[%clk 0:00:00]}  b5 {[%clk 0:00:00]} 39. Kf5 {[%clk 0:00:00]}  Rg3 {[%clk 0:00:00]} 40. Rh7 {[%clk 0:00:00]}  h3 {[%clk 0:00:00]} 41. g7 {[%clk 0:00:00]}  b4 {[%clk 0:00:00]} 42. Rh8+ {[%clk 0:00:00]}  Kb7 {[%clk 0:00:00]} 43. g8=Q {[%clk 0:00:00]}  Rxg8 {[%clk 0:00:00]} 44. Rxg8 {[%clk 0:00:00]}  h2 {[%clk 0:00:00]} 45. Rh8 {[%clk 0:00:00]}  Kc6 {[%clk 0:00:00]} 46. Rxh2 {[%clk 0:00:00]}  Kd5 {[%clk 0:00:00]} 47. Rd2+ {[%clk 0:00:00]}  Kc4 {[%clk 0:00:00]} 48. Ke4 {[%clk 0:00:00]}  Kc3 {[%clk 0:00:00]} 49. Rd8 {[%clk 0:00:00]}  b3 {[%clk 0:00:00]} 50. Rc8+ {[%clk 0:00:00]}  Kd2 {[%clk 0:00:00]} 51. Rb8 {[%clk 0:00:00]}  Kc2 {[%clk 0:00:00]} 52. Ke3 {[%clk 0:00:00]}  b2 {[%clk 0:00:00]} 53. Rc8+ {[%clk 0:00:00]}  Kd1 {[%clk 0:00:00]} 54. Rd8+ {[%clk 0:00:00]}  Kc1 {[%clk 0:00:00]} 55. Rc8+ {[%clk 0:00:00]}  Kd1 {[%clk 0:00:00]} 56. Rb8 {[%clk 0:00:00]}  Kc2 {[%clk 0:00:00]} 57. Rxb2+ {[%clk 0:00:00]}  Kxb2 {[%clk 0:00:00]} 1/2-1/2


[Site "https://www.chess.com"]

[Event "Titled Tuesday Blitz August 16 Early 2022"]
[White "Bashirli, Saadat"]
[Black "Tapia Ostolaza, Alexei"]
[WhiteFideId "13429990"]
[BlackFideId "6600581"]
[WhiteElo "1173"]
[BlackElo "2104"]
[Result "0-1"]
[Round "07"]
[TimeControl "180+2"]
[Date "2022.08.18"]
[WhiteClock "0:00:00"]
[BlackClock "0:00:00"]

1. d4 {[%clk 0:00:00]}  Nf6 {[%clk 0:00:00]} 2. e3 {[%clk 0:00:00]}  e6 {[%clk 0:00:00]} 3. f4 {[%clk 0:00:00]}  b6 {[%clk 0:00:00]} 4. Nf3 {[%clk 0:00:00]}  Bb7 {[%clk 0:00:00]} 5. Bd3 {[%clk 0:00:00]}  c5 {[%clk 0:00:00]} 6. c3 {[%clk 0:00:00]}  g6 {[%clk 0:00:00]} 7. Nbd2 {[%clk 0:00:00]}  Bg7 {[%clk 0:00:00]} 8. O-O {[%clk 0:00:00]}  O-O {[%clk 0:00:00]} 9. Qc2 {[%clk 0:00:00]}  Nc6 {[%clk 0:00:00]} 10. Ne5 {[%clk 0:00:00]}  Rc8 {[%clk 0:00:00]} 11. Ndf3 {[%clk 0:00:00]}  cxd4 {[%clk 0:00:00]} 12. exd4 {[%clk 0:00:00]}  Nb4 {[%clk 0:00:00]} 13. Qd1 {[%clk 0:00:00]}  Nxd3 {[%clk 0:00:00]} 14. Nxd3 {[%clk 0:00:00]}  d6 {[%clk 0:00:00]} 15. Be3 {[%clk 0:00:00]}  Nd5 {[%clk 0:00:00]} 16. Bd2 {[%clk 0:00:00]}  Ba6 {[%clk 0:00:00]} 17. Qe2 {[%clk 0:00:00]}  Re8 {[%clk 0:00:00]} 18. Rfe1 {[%clk 0:00:00]}  Qf6 {[%clk 0:00:00]} 19. g3 {[%clk 0:00:00]}  Rcd8 {[%clk 0:00:00]} 20. Nf2 {[%clk 0:00:00]}  Bxe2 {[%clk 0:00:00]} 21. Rxe2 {[%clk 0:00:00]}  h5 {[%clk 0:00:00]} 22. Rae1 {[%clk 0:00:00]}  Qf5 {[%clk 0:00:00]} 23. Nh4 {[%clk 0:00:00]}  Qc2 {[%clk 0:00:00]} 24. Bc1 {[%clk 0:00:00]}  Qa4 {[%clk 0:00:00]} 25. b3 {[%clk 0:00:00]}  Qa5 {[%clk 0:00:00]} 26. c4 {[%clk 0:00:00]}  Nc3 {[%clk 0:00:00]} 27. Rc2 {[%clk 0:00:00]}  Bxd4 {[%clk 0:00:00]} 28. Nf3 {[%clk 0:00:00]}  Bg7 {[%clk 0:00:00]} 29. Bd2 {[%clk 0:00:00]}  d5 {[%clk 0:00:00]} 30. cxd5 {[%clk 0:00:00]}  exd5 {[%clk 0:00:00]} 31. Rec1 {[%clk 0:00:00]}  Ne2+ {[%clk 0:00:00]} 32. Kg2 {[%clk 0:00:00]}  Qa6 {[%clk 0:00:00]} 33. Re1 {[%clk 0:00:00]}  Nd4 {[%clk 0:00:00]} 34. Nxd4 {[%clk 0:00:00]}  Bxd4 {[%clk 0:00:00]} 35. Rc7 {[%clk 0:00:00]}  Rxe1 {[%clk 0:00:00]} 36. Bxe1 {[%clk 0:00:00]}  Bxf2 {[%clk 0:00:00]} 37. Bxf2 {[%clk 0:00:00]}  Qe2 {[%clk 0:00:00]} 38. a4 {[%clk 0:00:00]}  d4 {[%clk 0:00:00]} 39. a5 {[%clk 0:00:00]}  d3 {[%clk 0:00:00]} 40. axb6 {[%clk 0:00:00]}  axb6 {[%clk 0:00:00]} 41. Rc1 {[%clk 0:00:00]}  d2 {[%clk 0:00:00]} 42. Rg1 {[%clk 0:00:00]}  d1=Q {[%clk 0:00:00]} 43. Rxd1 {[%clk 0:00:00]}  Rxd1 {[%clk 0:00:00]} 44. b4 {[%clk 0:00:00]}  Rd2 {[%clk 0:00:00]} 45. b5 {[%clk 0:00:00]}  Qxf2+ {[%clk 0:00:00]} 46. Kh3 {[%clk 0:00:00]}  Qxh2# {[%clk 0:00:00]} 0-1


[Site "https://www.chess.com"]